lending/lending_fUSD_20250719
["ID","MTS","AMOUNT","RATE_DAILY","PERIOD"]
[373209391,1752907843171,-529.60602113,0.00019178,2]
[373209393,1752907843186,-486.3388376,0.00019178,2]
[373209395,1752907843196,-494.54647444,0.00019178,2]
[373209397,1752907843206,-480.0,0.00019178,2]
[373209399,1752907843216,-480.0,0.00019178,2]
[373209401,1752907843228,-492.24785934,0.00019178,2]
[373209403,1752907843240,-466.33677332,0.00019178,2]
[373209405,1752907843249,-497.20249646,0.00019178,2]
[373209407,1752907843259,-480.0,0.00019178,2]
[373209409,1752907843269,-151.0,0.00019178,2]
[373209411,1752907843278,-151.0,0.00019178,2]
[373209413,1752907843288,-151.0,0.00019178,2]
[373209415,1752907843297,-151.0,0.00019178,2]
[373209417,1752907843308,-151.0,0.00019178,2]
[373209419,1752907843318,-232.265696,0.00019178,2]
[373209421,1752907843327,-348.20202481,0.00019178,2]
[373209423,1752907843337,-460.0,0.00019178,2]
[373209425,1752907843347,-385.37702902,0.00019178,2]
[373209427,1752907843357,-345.7887578,0.00019178,2]
[373209429,1752907843366,-482.68533715,0.00019178,2]
[373209431,1752907843376,-220.075473,0.00019178,2]
[373209433,1752907843386,-480.0,0.00019178,2]
[373209435,1752907843396,-399.61463719,0.00019178,2]
[373209437,1752907843406,-480.0,0.00019178,2]
[373209439,1752907843415,-480.0,0.00019178,2]
[373209441,1752907843425,-480.0,0.00019178,2]
[373209443,1752907843434,-364.37114996,0.00019178,2]
[373209446,1752907843443,-480.0,0.00019178,2]
[373209448,1752907843453,-461.98936791,0.00019178,2]
[373209450,1752907843463,-164.49,0.00019178,2]
[373209452,1752907843473,-480.0,0.00019178,2]
[373209454,1752907843484,-302.63204622,0.00019178,2]
[373209457,1752907843493,-151.0,0.00019178,2]
[373209458,1752907843503,-151.0,0.00019178,2]
[373209461,1752907843512,-151.0,0.00019178,2]
[373209462,1752907843522,-151.0,0.00019178,2]
[373209465,1752907843531,-151.0,0.00019178,2]
[373209497,1752907843841,-151.0,0.00019178,2]
[373209500,1752907843851,-151.0,0.00019178,2]
[373209502,1752907843860,-480.0,0.00019178,2]
[373209504,1752907843870,-480.0,0.00019178,2]
[373209505,1752907843880,-480.0,0.00019178,2]
[373209508,1752907843889,-480.0,0.00019178,2]
[373209510,1752907843899,-480.0,0.00019178,2]
[373209511,1752907843908,-480.0,0.00019178,2]
[373209513,1752907843918,-171.974497,0.00019178,2]
[373209515,1752907843928,-480.0,0.00019178,2]
[373209517,1752907843939,-480.0,0.00019178,2]
[373209519,1752907843949,-253.00090415,0.00019178,2]
[373209521,1752907843959,-654.73,0.00019178,2]
[373209524,1752907843969,-222.84821958,0.00019178,2]
[373209526,1752907843978,-268.75240875,0.00019178,2]
[373209553,1752907844233,-247.05614825,0.00019178,2]
[373209555,1752907844242,-480.0,0.00019178,2]
[373209557,1752907844252,-480.0,0.00019178,2]
[373209559,1752907844262,-480.0,0.00019178,2]
[373209561,1752907844272,-480.0,0.00019178,2]
[373209563,1752907844281,-480.0,0.00019178,2]
[373209565,1752907844292,-597.85,0.00019178,2]
[373209567,1752907844303,-471.49477063,0.00019178,2]
[373209569,1752907844312,-404.76252119,0.00019178,2]
[373209571,1752907844321,-852.498291,0.00019178,2]
[373209573,1752907844331,-494.6,0.00019178,2]
[373209575,1752907844340,-196.13826747,0.00019178,2]
[373209577,1752907844351,-656.36002353,0.00019178,2]
[373209579,1752907844361,-852.498291,0.00019178,2]
[373209581,1752907844370,-852.498291,0.00019178,2]
[373209583,1752907844380,-852.498291,0.00019178,2]
[373209585,1752907844389,-852.498291,0.00019178,2]
[373209587,1752907844399,-852.498291,0.00019178,2]
[373209589,1752907844408,-213.11976807,0.00019178,2]
[373209592,1752907844428,-266.88023193,0.00019178,2]
[373209594,1752907844438,-38.5937027,0.00019178,2]
[373209596,1752907844449,-813.9045883,0.00019178,2]
[373209598,1752907844459,-852.498291,0.00019178,2]
[373209600,1752907844468,-852.498291,0.00019178,2]
[373209602,1752907844478,-166.2888297,0.00019178,2]
[373209605,1752907844490,-686.2094613,0.00019178,2]
[373209607,1752907844500,-562.6,0.00019178,2]
[373209609,1752907844509,-852.498291,0.00019178,2]
[373209611,1752907844518,-40.9613147,0.00019178,2]
[373209615,1752907844555,-439.0386853,0.00019178,2]
[373209617,1752907844565,-852.498291,0.00019178,2]
[373209619,1752907844574,-852.498288,0.00019178,2]
[373209621,1752907844584,-480.0,0.00019178,2]
[373209623,1752907844593,-614.38,0.00019178,2]
[373209625,1752907844603,-801.31,0.00019178,2]
[373209627,1752907844612,-423.88988916,0.00019178,2]
[373209629,1752907844622,-480.0,0.00019178,2]
[373209631,1752907844631,-480.0,0.00019178,2]
[373209633,1752907844641,-569.00460871,0.00019178,2]
[373209635,1752907844651,-447.60873216,0.00019178,2]
[373209637,1752907844660,-480.0,0.00019178,2]
[373209639,1752907844670,-565.24,0.00019178,2]
[373209641,1752907844679,-480.0,0.00019178,2]
[373209643,1752907844689,-480.0,0.00019178,2]
[373209645,1752907844699,-480.0,0.00019178,2]
[373209647,1752907844708,-487.26239917,0.00019178,2]
[373209649,1752907844718,-480.0,0.00019178,2]
[373209651,1752907844727,-1259.57,0.00019178,2]
[373209653,1752907844737,-462.02463811,0.00019178,2]
[373209655,1752907844747,-480.0,0.00019178,2]
[373209657,1752907844756,-480.0,0.00019178,2]
[373209659,1752907844766,-480.0,0.00019178,2]
[373209661,1752907844775,-480.0,0.00019178,2]
[373209663,1752907844785,-502.12846168,0.00019178,2]
[373209666,1752907844794,-480.0,0.00019178,2]
[373209667,1752907844804,-921.82,0.00019178,2]
[373209670,1752907844813,-480.0,0.00019178,2]
[373209672,1752907844823,-508.27,0.00019178,2]
[373209674,1752907844832,-480.0,0.00019178,2]
[373209676,1752907844842,-480.0,0.00019178,2]
[373209678,1752907844851,-489.31510231,0.00019178,2]
[373209680,1752907844861,-480.0,0.00019178,2]
[373209682,1752907844871,-480.0,0.00019178,2]
[373209684,1752907844881,-574.84,0.00019178,2]
[373209686,1752907844891,-465.73019578,0.00019178,2]
[373209688,1752907844900,-263.59459055,0.00019178,2]
[373209690,1752907844910,-151.0,0.00019178,2]
[373209692,1752907844920,-537.88,0.00019178,2]
[373209694,1752907844929,-151.0,0.00019178,2]
[373209696,1752907844939,-151.0,0.00019178,2]
[373209698,1752907844948,-151.0,0.00019178,2]
[373209700,1752907844958,-480.0,0.00019178,2]
[373209702,1752907844967,-230.20063863,0.00019178,2]
[373209704,1752907844976,-169.192244,0.00019178,2]
[373209706,1752907844987,-424.56227133,0.00019178,2]
[373209708,1752907844997,-480.0,0.00019178,2]
[373209710,1752907845007,-480.0,0.00019178,2]
[373209712,1752907845016,-488.86366622,0.00019178,2]
[373209714,1752907845025,-573.09,0.00019178,2]
[373209716,1752907845035,-455.0,0.00019178,2]
[373209718,1752907845045,-1365.62,0.00019178,2]
[373209720,1752907845054,-605.98329035,0.00019178,2]
[373209722,1752907845065,-577.37,0.00019178,2]
[373209724,1752907845074,-464.83370381,0.00019178,2]
[373209726,1752907845083,-480.0,0.00019178,2]
[373209728,1752907845092,-581.07,0.00019178,2]
[373209730,1752907845102,-827.19,0.00019178,2]
[373209732,1752907845111,-480.0,0.00019178,2]
[373209734,1752907845121,-4441.88,0.00019178,2]
[373209736,1752907845130,-637.96,0.00019178,2]
[373209738,1752907845139,-480.0,0.00019178,2]
[373209740,1752907845149,-564.66165048,0.00019178,2]
[373209742,1752907845159,-465.74586425,0.00019178,2]
[373209744,1752907845169,-566.64,0.00019178,2]
[373209746,1752907845178,-584.34,0.00019178,2]
[373209748,1752907845188,-480.0,0.00019178,2]
[373209749,1752907845197,-480.0,0.00019178,2]
[373209751,1752907845207,-480.0,0.00019178,2]
[373209753,1752907845217,-593.76555938,0.00019178,2]
[373209755,1752907845230,-897.36,0.00019178,2]
[373209757,1752907845241,-480.0,0.00019178,2]
[373209760,1752907845250,-480.0,0.00019178,2]
[373209761,1752907845259,-791.99,0.00019178,2]
[373209764,1752907845270,-1259.05,0.00019178,2]
[373209765,1752907845279,-480.0,0.00019178,2]
[373209767,1752907845288,-1164.26,0.00019178,2]
[373209769,1752907845300,-480.0,0.00019178,2]
[373209771,1752907845309,-480.0,0.00019178,2]
[373209773,1752907845319,-1795.43,0.00019178,2]
[373209775,1752907845330,-480.0,0.00019178,2]
[373209777,1752907845339,-480.0,0.00019178,2]
[373209779,1752907845348,-488.80939263,0.00019178,2]
[373209781,1752907845358,-480.0,0.00019178,2]
[373209783,1752907845367,-499.55260415,0.00019178,2]
[373209785,1752907845376,-480.0,0.00019178,2]
[373209787,1752907845386,-480.0,0.00019178,2]
[373209789,1752907845395,-480.0,0.00019178,2]
[373209791,1752907845404,-480.0,0.00019178,2]
[373209793,1752907845414,-244.3892732,0.00019178,2]
[373209795,1752907845423,-583.06911265,0.00019178,2]
[373209797,1752907845433,-540.38,0.00019178,2]
[373209799,1752907845442,-669.7,0.00019178,2]
[373209801,1752907845453,-480.0,0.00019178,2]
[373209804,1752907845462,-480.0,0.00019178,2]
[373209806,1752907845472,-1011.37,0.00019178,2]
[373209809,1752907845481,-480.0,0.00019178,2]
[373209812,1752907845492,-480.0,0.00019178,2]
[373209814,1752907845502,-480.0,0.00019178,2]
[373209817,1752907845511,-1288.17,0.00019178,2]
[373209819,1752907845520,-480.0,0.00019178,2]
[373209821,1752907845530,-500.0,0.00019178,2]
[373209823,1752907845540,-248.67,0.00019178,2]
[373209825,1752907845549,-835.27,0.00019178,2]
[373209827,1752907845559,-632.89,0.00019178,2]
[373209829,1752907845569,-480.0,0.00019178,2]
[373209831,1752907845578,-480.0,0.00019178,2]
[373209833,1752907845588,-631.07,0.00019178,2]
[373209835,1752907845597,-480.0,0.00019178,2]
[373209837,1752907845606,-480.0,0.00019178,2]
[373209839,1752907845616,-536.6,0.00019178,2]
[373209841,1752907845625,-480.0,0.00019178,2]
[373209844,1752907845635,-500.0,0.00019178,2]
[373209847,1752907845644,-500.0,0.00019178,2]
[373209850,1752907845654,-480.0,0.00019178,2]
[373209853,1752907845663,-480.0,0.00019178,2]
[373209855,1752907845672,-480.0,0.00019178,2]
[373209858,1752907845682,-207.75540983,0.00019178,2]
[373209859,1752907845691,-480.0,0.00019178,2]
[373209861,1752907845700,-571.22,0.00019178,2]
[373209863,1752907845709,-499.34,0.00019178,2]
[373209865,1752907845718,-480.0,0.00019178,2]
[373209867,1752907845728,-480.0,0.00019178,2]
[373209869,1752907845738,-480.0,0.00019178,2]
[373209871,1752907845748,-615.64,0.00019178,2]
[373209873,1752907845757,-480.0,0.00019178,2]
[373209875,1752907845768,-480.0,0.00019178,2]
[373209877,1752907845777,-507.11,0.00019178,2]
[373209879,1752907845786,-412.87542135,0.00019178,2]
[373209881,1752907845796,-500.79544799,0.00019178,2]
[373209883,1752907845805,-480.0,0.00019178,2]
[373209885,1752907845815,-390.43335192,0.00019178,2]
[373209887,1752907845824,-725.13,0.00019178,2]
[373209889,1752907845833,-1223.95,0.00019178,2]
[373209892,1752907845843,-798.17,0.00019178,2]
[373209895,1752907845852,-590.23,0.00019178,2]
[373209898,1752907845861,-480.0,0.00019178,2]
[373209901,1752907845870,-480.0,0.00019178,2]
[373209904,1752907845879,-7391.1,0.00019178,2]
[373209907,1752907845889,-1220.62,0.00019178,2]
[373209910,1752907845899,-561.57,0.00019178,2]
[373209913,1752907845909,-965.98,0.00019178,2]
[373209916,1752907845918,-480.0,0.00019178,2]
[373209919,1752907845927,-996.17,0.00019178,2]
[373209922,1752907845937,-480.0,0.00019178,2]
[373209925,1752907845947,-480.0,0.00019178,2]
[373209928,1752907845956,-485.16721123,0.00019178,2]
[373209931,1752907845966,-480.0,0.00019178,2]
[373209934,1752907845976,-480.0,0.00019178,2]
[373209936,1752907845985,-875.35,0.00019178,2]
[373209938,1752907845995,-500.0,0.00019178,2]
[373209940,1752907846004,-500.0,0.00019178,2]
[373209942,1752907846013,-500.0,0.00019178,2]
[373209944,1752907846023,-197.11683008,0.00019178,2]
[373209946,1752907846032,-600.57,0.00019178,2]
[373209948,1752907846041,-480.0,0.00019178,2]
[373209950,1752907846051,-2076.63,0.00019178,2]
[373209952,1752907846060,-480.0,0.00019178,2]
[373209954,1752907846069,-480.0,0.00019178,2]
[373209956,1752907846078,-151.0,0.00019178,2]
[373209958,1752907846088,-210.67,0.00019178,2]
[373209960,1752907846097,-151.96,0.00019178,2]
[373209968,1752907846166,-14621.85957694,0.00019178,2]
[373209970,1752907846176,-355.0,0.0001918,2]
[373209972,1752907846185,-476.80070012,0.00019186,2]
[373209974,1752907846194,-210.82967408,0.00019186,2]
[373209976,1752907846204,-839.16344753,0.00019186,2]
[373209978,1752907846213,-2500.0,0.00019187,2]
[373209980,1752907846227,-887.0,0.00019187,2]
[373209982,1752907846236,-355.0,0.00019193,2]
[373209984,1752907846246,-500.0,0.00019199,2]
[373209986,1752907846255,-55951.44442114,0.000192,2]
[373209988,1752907846265,-2415.1404238,0.00019206,2]
[373209990,1752907846274,-355.0,0.00019228,2]
[373209992,1752907846283,-1083.0,0.00019238,2]
[373209993,1752907846292,-2402.0,0.00019243,2]
[373209995,1752907846302,-355.0,0.00019281,2]
[373209998,1752907846312,-382.24700736,0.00019286,2]
[373210000,1752907846322,-1201.35,0.00019287,2]
[373210002,1752907846331,-480.0,0.00019287,2]
[373210003,1752907846341,-480.0,0.00019287,2]
[373210006,1752907846351,-480.0,0.00019287,2]
[373210007,1752907846360,-499.39733788,0.00019287,2]
[373210009,1752907846370,-500.99,0.00019287,2]
[373210011,1752907846379,-480.0,0.00019287,2]
[373210013,1752907846388,-199.26,0.00019287,2]
[373210015,1752907846397,-480.0,0.00019287,2]
[373210017,1752907846407,-181.51119024,0.00019287,2]
[373210019,1752907846416,-567.7,0.00019287,2]
[373210021,1752907846426,-480.0,0.00019287,2]
[373210023,1752907846435,-480.0,0.00019287,2]
[373210025,1752907846444,-480.0,0.00019287,2]
[373210027,1752907846453,-480.0,0.00019287,2]
[373210029,1752907846464,-480.0,0.00019287,2]
[373210031,1752907846474,-480.0,0.00019287,2]
[373210033,1752907846483,-337.72,0.00019287,2]
[373210035,1752907846494,-236.49,0.00019287,2]
[373210037,1752907846504,-480.0,0.00019287,2]
[373210038,1752907846513,-461.4020093,0.00019287,2]
[373210040,1752907846522,-480.0,0.00019287,2]
[373210042,1752907846532,-458.29796678,0.00019287,2]
[373210044,1752907846542,-480.0,0.00019287,2]
[373210046,1752907846551,-187.19,0.00019287,2]
[373210048,1752907846560,-480.0,0.00019287,2]
[373210050,1752907846569,-480.0,0.00019287,2]
[373210052,1752907846579,-480.0,0.00019287,2]
[373210054,1752907846589,-654.73,0.00019287,2]
[373210056,1752907846599,-480.0,0.00019287,2]
[373210057,1752907846608,-480.0,0.00019287,2]
[373210059,1752907846618,-480.0,0.00019287,2]
[373210061,1752907846627,-480.0,0.00019287,2]
[373210063,1752907846637,-214.35721233,0.00019287,2]
[373210065,1752907846646,-597.85,0.00019287,2]
[373210067,1752907846655,-494.6,0.00019287,2]
[373210069,1752907846665,-480.0,0.00019287,2]
[373210071,1752907846674,-562.6,0.00019287,2]
[373210073,1752907846685,-480.0,0.00019287,2]
[373210075,1752907846694,-480.0,0.00019287,2]
[373210077,1752907846703,-614.38,0.00019287,2]
[373210079,1752907846713,-801.31,0.00019287,2]
[373210081,1752907846722,-480.0,0.00019287,2]
[373210083,1752907846731,-480.0,0.00019287,2]
[373210084,1752907846741,-174.12,0.00019287,2]
[373210086,1752907846750,-565.24,0.00019287,2]
[373210088,1752907846760,-480.0,0.00019287,2]
[373210090,1752907846769,-480.0,0.00019287,2]
[373210092,1752907846778,-480.0,0.00019287,2]
[373210094,1752907846788,-480.0,0.00019287,2]
[373210096,1752907846797,-1259.57,0.00019287,2]
[373210098,1752907846806,-480.0,0.00019287,2]
[373210100,1752907846815,-480.0,0.00019287,2]
[373210102,1752907846825,-480.0,0.00019287,2]
[373210104,1752907846834,-480.0,0.00019287,2]
[373210106,1752907846843,-385.54,0.00019287,2]
[373210108,1752907846852,-921.82,0.00019287,2]
[373210109,1752907846861,-480.0,0.00019287,2]
[373210111,1752907846871,-480.0,0.00019287,2]
[373210113,1752907846881,-480.0,0.00019287,2]
[373210115,1752907846890,-480.0,0.00019287,2]
[373210117,1752907846901,-350.07,0.00019287,2]
[373210120,1752907846911,-480.0,0.00019287,2]
[373210121,1752907846919,-480.0,0.00019287,2]
[373210123,1752907846929,-573.09,0.00019287,2]
[373210125,1752907846938,-1365.62,0.00019287,2]
[373210127,1752907846947,-577.37,0.00019287,2]
[373210129,1752907846956,-480.0,0.00019287,2]
[373210131,1752907846965,-581.07,0.00019287,2]
[373210133,1752907846974,-827.19,0.00019287,2]
[373210135,1752907846984,-480.0,0.00019287,2]
[373210137,1752907846994,-4441.88,0.00019287,2]
[373210139,1752907847003,-637.96,0.00019287,2]
[373210141,1752907847012,-480.0,0.00019287,2]
[373210143,1752907847022,-584.34,0.00019287,2]
[373210145,1752907847031,-566.64,0.00019287,2]
[373210147,1752907847041,-366.00712568,0.00019287,2]
[373210149,1752907847050,-480.0,0.00019287,2]
[373210150,1752907847059,-480.0,0.00019287,2]
[373210152,1752907847068,-480.0,0.00019287,2]
[373210154,1752907847077,-897.36,0.00019287,2]
[373210156,1752907847086,-480.0,0.00019287,2]
[373210158,1752907847095,-791.99,0.00019287,2]
[373210160,1752907847104,-1259.05,0.00019287,2]
[373210162,1752907847113,-480.0,0.00019287,2]
[373210164,1752907847122,-1164.26,0.00019287,2]
[373210165,1752907847131,-480.0,0.00019287,2]
[373210167,1752907847140,-480.0,0.00019287,2]
[373210169,1752907847150,-1795.43,0.00019287,2]
[373210171,1752907847159,-480.0,0.00019287,2]
[373210173,1752907847168,-480.0,0.00019287,2]
[373210175,1752907847177,-480.0,0.00019287,2]
[373210177,1752907847187,-480.0,0.00019287,2]
[373210179,1752907847196,-480.0,0.00019287,2]
[373210181,1752907847206,-480.0,0.00019287,2]
[373210183,1752907847215,-480.0,0.00019287,2]
[373210185,1752907847228,-540.38,0.00019287,2]
[373210187,1752907847238,-480.0,0.00019287,2]
[373210189,1752907847247,-669.7,0.00019287,2]
[373210191,1752907847256,-480.0,0.00019287,2]
[373210193,1752907847266,-1011.37,0.00019287,2]
[373210195,1752907847276,-480.0,0.00019287,2]
[373210197,1752907847285,-480.0,0.00019287,2]
[373210199,1752907847296,-480.0,0.00019287,2]
[373210201,1752907847306,-1288.17,0.00019287,2]
[373210203,1752907847315,-632.89,0.00019287,2]
[373210205,1752907847324,-835.27,0.00019287,2]
[373210207,1752907847334,-480.0,0.00019287,2]
[373210209,1752907847343,-480.0,0.00019287,2]
[373210210,1752907847352,-631.07,0.00019287,2]
[373210212,1752907847362,-480.0,0.00019287,2]
[373210214,1752907847371,-480.0,0.00019287,2]
[373210216,1752907847381,-536.6,0.00019287,2]
[373210218,1752907847390,-480.0,0.00019287,2]
[373210220,1752907847399,-480.0,0.00019287,2]
[373210222,1752907847408,-480.0,0.00019287,2]
[373210224,1752907847418,-480.0,0.00019287,2]
[373210226,1752907847428,-480.0,0.00019287,2]
[373210228,1752907847437,-571.22,0.00019287,2]
[373210230,1752907847446,-499.34,0.00019287,2]
[373210232,1752907847455,-480.0,0.00019287,2]
[373210234,1752907847464,-615.64,0.00019287,2]
[373210236,1752907847474,-480.0,0.00019287,2]
[373210238,1752907847484,-480.0,0.00019287,2]
[373210240,1752907847494,-507.11,0.00019287,2]
[373210242,1752907847503,-1223.95,0.00019287,2]
[373210244,1752907847512,-725.13,0.00019287,2]
[373210246,1752907847521,-798.17,0.00019287,2]
[373210248,1752907847531,-480.0,0.00019287,2]
[373210250,1752907847540,-480.0,0.00019287,2]
[373210251,1752907847549,-7391.1,0.00019287,2]
[373210253,1752907847559,-1220.62,0.00019287,2]
[373210255,1752907847568,-561.57,0.00019287,2]
[373210257,1752907847577,-965.98,0.00019287,2]
[373210259,1752907847587,-480.0,0.00019287,2]
[373210261,1752907847596,-996.17,0.00019287,2]
[373210263,1752907847606,-480.0,0.00019287,2]
[373210265,1752907847615,-480.0,0.00019287,2]
[373210267,1752907847624,-480.0,0.00019287,2]
[373210269,1752907847634,-480.0,0.00019287,2]
[373210271,1752907847643,-875.35,0.00019287,2]
[373210273,1752907847652,-480.0,0.00019287,2]
[373210275,1752907847661,-2076.63,0.00019287,2]
[373210277,1752907847671,-480.0,0.00019287,2]
[373210279,1752907847681,-200.0,0.0001929,2]
[373210281,1752907847690,-438.054,0.00019302,2]
[373210283,1752907847699,-1999.904,0.00019302,2]
[373210285,1752907847708,-463.119,0.00019302,2]
[373210287,1752907847718,-889.0,0.00019302,2]
[373210288,1752907847727,-435.03561086,0.00019341,2]
[373210290,1752907847737,-2073.09310276,0.00019364,2]
[373210292,1752907847746,-200.0,0.00019366,2]
[373210294,1752907847755,-568.66820372,0.00019367,2]
[373210296,1752907847764,-200.0,0.00019369,2]
[373210298,1752907847774,-200.0,0.0001937,2]
[373210300,1752907847784,-2073.09310276,0.00019372,2]
[373210302,1752907847794,-500.0,0.00019373,2]
[373210304,1752907847804,-500.0,0.00019373,2]
[373210306,1752907847813,-500.0,0.00019373,2]
[373210308,1752907847822,-500.0,0.00019373,2]
[373210310,1752907847832,-276.71508561,0.00019373,2]
[373210312,1752907847841,-150.0,0.00019373,2]
[373210314,1752907847851,-674.0,0.00019373,2]
[373210316,1752907847860,-535.0,0.00019373,2]
[373210318,1752907847870,-180.0,0.00019373,2]
[373210320,1752907847879,-150.0,0.00019373,2]
[373210322,1752907847890,-500.0,0.00019373,2]
[373210324,1752907847899,-150.0,0.00019373,2]
[373210326,1752907847909,-2689.0,0.00019373,2]
[373210328,1752907847918,-150.0,0.00019373,2]
[373210330,1752907847927,-500.0,0.00019373,2]
[373210332,1752907847937,-150.0,0.00019373,2]
[373210334,1752907847946,-909.0,0.00019373,2]
[373210336,1752907847956,-150.0,0.00019374,2]
[373210338,1752907847965,-150.0,0.00019374,2]
[373210340,1752907847974,-150.0,0.00019374,2]
[373210342,1752907847984,-150.0,0.00019374,2]
[373210344,1752907847994,-150.0,0.00019374,2]
[373210346,1752907848003,-150.0,0.00019374,2]
[373210347,1752907848012,-150.0,0.00019374,2]
[373210349,1752907848022,-200.75920096,0.00019374,2]
[373210351,1752907848031,-150.0,0.00019374,2]
[373210354,1752907848041,-150.0,0.00019374,2]
[373210355,1752907848050,-500.0,0.00019374,2]
[373210357,1752907848059,-150.0,0.00019374,2]
[373210359,1752907848069,-150.0,0.00019374,2]
[373210361,1752907848079,-150.0,0.00019374,2]
[373210363,1752907848088,-500.0,0.00019374,2]
[373210365,1752907848098,-150.0,0.00019374,2]
[373210367,1752907848107,-500.0,0.00019374,2]
[373210369,1752907848116,-500.0,0.00019374,2]
[373210371,1752907848126,-150.0,0.00019374,2]
[373210373,1752907848135,-150.0,0.00019374,2]
[373210375,1752907848144,-500.0,0.00019374,2]
[373210377,1752907848153,-150.0,0.00019374,2]
[373210379,1752907848163,-2889.97075009,0.00019374,2]
[373210381,1752907848172,-200.0,0.00019381,2]
[373210383,1752907848181,-428.60386648,0.00019381,2]
[373210385,1752907848191,-2889.97075009,0.00019383,2]
[373210387,1752907848200,-294.64241732,0.00019387,2]
[373210389,1752907848209,-2500.0,0.00019387,2]
[373210391,1752907848219,-1000.0,0.00019387,2]
[373210393,1752907848232,-206.75772475,0.00019389,2]
[373210394,1752907848242,-500.0,0.00019389,2]
[373210396,1752907848251,-248.28007023,0.00019389,2]
[373210398,1752907848261,-87420.31454899,0.0001939,2]
[373210400,1752907848271,-406.232284,0.0001939,2]
[373210402,1752907848282,-200.0,0.00019391,2]
[373210404,1752907848291,-167.21,0.00019395,2]
[373210406,1752907848301,-180.08655755,0.00019396,2]
[373210408,1752907848311,-198631.3521326,0.00019397,2]
[373210410,1752907848320,-1201.35,0.00019397,2]
[373210412,1752907848329,-480.0,0.00019397,2]
[373210414,1752907848338,-480.0,0.00019397,2]
[373210416,1752907848349,-480.0,0.00019397,2]
[373210418,1752907848358,-191.42418838,0.00019397,2]
[373210420,1752907848366,-480.0,0.00019397,2]
[373210422,1752907848375,-549.39889184,0.00019397,2]
[373210424,1752907848384,-480.0,0.00019397,2]
[373210426,1752907848394,-480.0,0.00019397,2]
[373210428,1752907848403,-480.0,0.00019397,2]
[373210430,1752907848412,-496.10741327,0.00019397,2]
[373210432,1752907848421,-469.43,0.00019397,2]
[373210434,1752907848431,-480.0,0.00019397,2]
[373210436,1752907848440,-480.0,0.00019397,2]
[373210437,1752907848449,-480.0,0.00019397,2]
[373210439,1752907848459,-480.0,0.00019397,2]
[373210442,1752907848468,-480.0,0.00019397,2]
[373210444,1752907848478,-654.73,0.00019397,2]
[373210446,1752907848488,-480.0,0.00019397,2]
[373210447,1752907848498,-480.0,0.00019397,2]
[373210448,1752907848508,-480.0,0.00019397,2]
[373210449,1752907848517,-480.0,0.00019397,2]
[373210450,1752907848527,-597.85,0.00019397,2]
[373210451,1752907848538,-494.6,0.00019397,2]
[373210452,1752907848548,-480.0,0.00019397,2]
[373210453,1752907848557,-562.6,0.00019397,2]
[373210454,1752907848567,-321.54621735,0.00019397,2]
[373210455,1752907848576,-480.0,0.00019397,2]
[373210456,1752907848585,-614.38,0.00019397,2]
[373210457,1752907848595,-801.31,0.00019397,2]